[Event "Chpt France Universitaire 2024"]
[Site "Bastia, France"]
[Date "2024.04.07"]
[Round "8.6"]
[White "Blanquet, Camille"]
[Black "Maache, Jawad"]
[Result "0-1"]
[TimeControl "15min+5s"]
[WhiteElo "2035"]
[BlackElo "2154"]

1. d4 {[%clk 00:15:05]} {[%emt 00:00:02]} d5 {[%clk 00:15:05]} {[%emt
00:00:02]} 2. c4 {[%clk 00:15:05]} e6 {[%clk 00:15:05]} {[%emt 00:00:02]} 3.
Nc3 {[%clk 00:15:05]} {[%emt 00:00:02]} c6 {[%clk 00:15:05]} {[%emt 00:00:04]}
4. Nf3 {[%clk 00:15:05]} {[%emt 00:00:04]} Nf6 {[%clk 00:15:05]} {[%emt
00:00:05]} 5. g3 {[%clk 00:15:05]} {[%emt 00:00:03]} Be7 {[%clk 00:14:57]}
{[%emt 00:00:12]} 6. Bg2 {[%clk 00:15:05]} {[%emt 00:00:02]} O-O {[%clk
00:14:47]} {[%emt 00:00:15]} 7. O-O {[%clk 00:15:05]} {[%emt 00:00:02]} Nbd7
{[%clk 00:14:43]} {[%emt 00:00:10]} 8. Qd3 {[%clk 00:14:34]} {[%emt 00:00:37]}
b6 {[%clk 00:14:30]} {[%emt 00:00:18]} 9. cxd5 {[%clk 00:14:33]} {[%emt
00:00:06]} cxd5 {[%clk 00:14:18]} {[%emt 00:00:17]} 10. Bf4 {[%clk 00:14:01]}
{[%emt 00:00:37]} Bb7 {[%clk 00:13:29]} {[%emt 00:00:54]} 11. Nb5 {[%clk
00:13:20]} {[%emt 00:00:46]} Ba6 {[%clk 00:13:09]} {[%emt 00:00:25]} 12. Rac1
{[%clk 00:12:57]} {[%emt 00:00:28]} Ne4 {[%clk 00:12:22]} {[%emt 00:00:52]} 13.
a4 {[%clk 00:12:24]} {[%emt 00:00:39]} Bd6 {[%clk 00:11:50]} {[%emt 00:00:36]}
14. Ne5 {[%clk 00:11:04]} {[%emt 00:01:25]} Bxe5 {[%clk 00:11:22]} {[%emt
00:00:33]} 15. dxe5 {[%clk 00:10:52]} {[%emt 00:00:16]} Nec5 {[%clk 00:10:50]}
{[%emt 00:00:38]} 16. Qc2 {[%clk 00:10:00]} {[%emt 00:00:58]} Bxb5 {[%clk
00:09:00]} {[%emt 00:01:54]} 17. axb5 {[%clk 00:10:00]} {[%emt 00:00:03]} a5
{[%clk 00:08:29]} {[%emt 00:00:36]} 18. h4 {[%clk 00:09:27]} {[%emt 00:00:37]}
a4 {[%clk 00:05:56]} {[%emt 00:00:32]} 19. Rfd1 {[%clk 00:08:36]} {[%emt
00:00:56]} Nb3 {[%clk 00:07:56]} {[%emt 00:00:12]} 20. Rb1 {[%clk 00:08:35]}
{[%emt 00:00:05]} Ndc5 {[%clk 00:07:56]} {[%emt 00:00:05]} 21. Be3 {[%clk
00:08:03]} {[%emt 00:00:37]} Qe8 {[%clk 00:07:46]} {[%emt 00:00:15]} 22. Bd4
{[%clk 00:07:05]} {[%emt 00:01:02]} Qxb5 {[%clk 00:07:24]} {[%emt 00:00:27]} 23.
e4 {[%clk 00:06:57]} {[%emt 00:00:13]} Nxd4 {[%clk 00:07:18]} {[%emt 00:00:10]}
24. Rxd4 {[%clk 00:06:57]} {[%emt 00:00:04]} Nb3 {[%clk 00:07:18]} {[%emt
00:00:02]} 25. Rd3 {[%clk 00:06:05]} {[%emt 00:00:57]} d4 {[%clk 00:07:16]}
{[%emt 00:00:07]} 26. f4 {[%clk 00:05:32]} {[%emt 00:00:38]} Rac8 {[%clk
00:06:41]} {[%emt 00:00:40]} 27. Qd1 {[%clk 00:05:26]} {[%emt 00:00:12]} Qc4
{[%clk 00:06:22]} {[%emt 00:00:24]} 28. Qf3 {[%clk 00:03:50]} {[%emt 00:01:40]}
Qc2 {[%clk 00:05:43]} {[%emt 00:00:44]} 29. Rbd1 {[%clk 00:03:50]} {[%emt
00:00:03]} Qxb2 {[%clk 00:05:28]} {[%emt 00:00:19]} 30. h5 {[%clk 00:03:49]}
{[%emt 00:00:07]} h6 {[%clk 00:04:06]} {[%emt 00:01:27]} 31. f5 {[%clk
00:03:47]} {[%emt 00:00:07]} Rc1 {[%clk 00:03:33]} {[%emt 00:00:39]} 32. f6
{[%emt 00:00:26]} g5 {[%clk 00:02:08]} {[%emt 00:01:30]} 33. hxg6 {[%clk
00:03:23]} {[%emt 00:00:08]} fxg6 {[%clk 00:02:08]} {[%emt 00:00:02]} 34. Qg4
{[%clk 00:03:16]} {[%emt 00:00:12]} Kf7 {[%clk 00:02:08]} {[%emt 00:00:03]} 35.
Bh3 {[%clk 00:02:25]} {[%emt 00:00:56]} Nc5 {[%clk 00:01:56]} {[%emt 00:00:16]}
36. Rxc1 {[%clk 00:01:55]} {[%emt 00:00:36]} Qxc1+ {[%clk 00:01:56]} {[%emt
00:00:02]} 37. Rd1 {[%clk 00:01:55]} {[%emt 00:00:01]} Qe3+ {[%clk 00:01:56]}
{[%emt 00:00:04]} 38. Kh2 {[%clk 00:01:55]} {[%emt 00:00:02]} h5 {[%clk
00:01:46]} {[%emt 00:00:15]} 39. Qf4 {[%clk 00:01:38]} {[%emt 00:00:22]} Qxf4
{[%clk 00:01:15]} {[%emt 00:00:36]} 40. gxf4 {[%clk 00:01:38]} {[%emt
00:00:02]} Rd8 {[%clk 00:01:10]} {[%emt 00:00:09]} 41. f5 {[%clk 00:01:20]}
{[%emt 00:00:23]} gxf5 {[%clk 00:00:54]} {[%emt 00:00:21]} 42. exf5 {[%clk
00:01:20]} {[%emt 00:00:03]} exf5 {[%clk 00:00:44]} {[%emt 00:00:15]} 43. Bxf5
{[%clk 00:01:20]} {[%emt 00:00:02]} Rd5 {[%clk 00:00:44]} {[%emt 00:00:04]} 44.
Re1 {[%clk 00:01:14]} {[%emt 00:00:11]} Ne6 {[%clk 00:00:40]} {[%emt 00:00:08]}
45. Kg3 {[%clk 00:00:37]} {[%emt 00:00:43]} d3 {[%clk 00:00:35]} {[%emt
00:00:10]} 46. Bxe6+ {[%clk 00:00:24]} {[%emt 00:00:17]} Kxe6 {[%clk 00:00:35]}
{[%emt 00:00:02]} 47. Rf1 {[%clk 00:00:24]} Rd7 {[%clk 00:00:25]} {[%emt
00:00:16]} 48. Kf4 {[%clk 00:00:23]} {[%emt 00:00:06]} d2 {[%clk 00:00:24]}
{[%emt 00:00:06]} 49. Rd1 {[%clk 00:00:23]} {[%emt 00:00:05]} a3 {[%clk
00:00:23]} {[%emt 00:00:05]} 50. Kg5 {[%clk 00:00:15]} {[%emt 00:00:13]} Kxe5
{[%clk 00:00:22]} {[%emt 00:00:06]} 51. Kg6 {[%clk 00:00:15]} {[%emt 00:00:03]}
Rd6 {[%clk 00:00:22]} {[%emt 00:00:03]} 52. Kg7 {[%clk 00:00:14]} {[%emt
00:00:05]} Rxf6 {[%clk 00:00:13]} {[%emt 00:00:14]} 53. Rxd2 {[%clk 00:00:14]}
{[%emt 00:00:02]} Rf3 {[%clk 00:00:11]} {[%emt 00:00:06]} 54. Kg6 {[%clk
00:00:14]} {[%emt 00:00:05]} b5 {[%clk 00:00:08]} {[%emt 00:00:08]} 55. Rh2
{[%clk 00:00:14]} {[%emt 00:00:03]} b4 {[%clk 00:00:08]} {[%emt 00:00:04]} 56.
Rxh5+ {[%clk 00:00:14]} {[%emt 00:00:04]} Kd4 {[%clk 00:00:08]} {[%emt
00:00:01]} 57. Kg5 {[%clk 00:00:14]} {[%emt 00:00:05]} Kc3 {[%clk 00:00:08]}
{[%emt 00:00:02]} 58. Kg4 {[%clk 00:00:14]} {[%emt 00:00:01]} Rf8 {[%clk
00:00:08]} {[%emt 00:00:01]} 59. Rh3+ {[%clk 00:00:14]} {[%emt 00:00:04]} Kb2
{[%clk 00:00:08]} {[%emt 00:00:02]} 60. Rh2+ {[%clk 00:00:14]} {[%emt
00:00:01]} Kb3 {[%clk 00:00:08]} 61. Rh3+ {[%clk 00:00:14]} {[%emt 00:00:02]}
Ka4 {[%clk 00:00:08]} 62. Kg5 {[%clk 00:00:12]} {[%emt 00:00:07]} a2 {[%clk
00:00:08]} {[%emt 00:00:02]} 63. Rh7 {[%clk 00:00:12]} {[%emt 00:00:02]} b3
{[%clk 00:00:08]} {[%emt 00:00:04]} 64. Rb7 {[%clk 00:00:11]} {[%emt 00:00:06]}
Ka3 {[%clk 00:00:08]} {[%emt 00:00:02]} 0-1

[Event "Chpt France Universitaire 2024"]
[Site "Bastia, France"]
[Date "2024.04.07"]
[Round "8.7"]
[White "Pacteau, Andre"]
[Black "Soreda, Matteo"]
[Result "1-0"]
[TimeControl "15min+5s"]
[WhiteElo "2099"]
[BlackElo "1954"]

1. e4 {[%clk 00:15:05]} {[%emt 00:00:01]} e5 {[%clk 00:15:05]} {[%emt
00:00:01]} 2. Nc3 {[%clk 00:15:05]} {[%emt 00:00:04]} Nc6 {[%clk 00:15:04]}
{[%emt 00:00:06]} 3. g3 {[%clk 00:15:05]} {[%emt 00:00:02]} Bc5 {[%clk
00:14:47]} {[%emt 00:00:22]} 4. d3 {[%clk 00:15:01]} {[%emt 00:00:09]} d6
{[%clk 00:14:30]} {[%emt 00:00:22]} 5. Be3 {[%clk 00:14:59]} {[%emt 00:00:07]}
Bxe3 {[%clk 00:14:14]} {[%emt 00:00:21]} 6. fxe3 {[%clk 00:14:59]} {[%emt
00:00:02]} Nf6 {[%clk 00:14:03]} {[%emt 00:00:15]} 7. Bg2 {[%clk 00:14:26]}
{[%emt 00:00:39]} Ne7 {[%clk 00:13:34]} {[%emt 00:00:34]} 8. d4 {[%clk
00:13:06]} {[%emt 00:01:24]} O-O {[%clk 00:13:14]} {[%emt 00:00:25]} 9. Qd2
{[%clk 00:12:49]} {[%emt 00:00:23]} c5 {[%clk 00:12:25]} {[%emt 00:00:54]} 10.
d5 {[%clk 00:11:39]} {[%emt 00:01:15]} Qa5 {[%clk 00:11:36]} {[%emt 00:00:54]}
11. Nge2 {[%clk 00:11:27]} {[%emt 00:00:17]} b5 {[%clk 00:11:28]} {[%emt
00:00:13]} 12. O-O {[%clk 00:11:27]} {[%emt 00:00:04]} Qb6 {[%clk 00:09:27]}
{[%emt 00:02:07]} 13. Rxf6 {[%clk 00:10:53]} {[%emt 00:00:38]} gxf6 {[%clk
00:09:26]} {[%emt 00:00:06]} 14. Rf1 {[%clk 00:10:53]} {[%emt 00:00:02]} Kg7
{[%clk 00:07:45]} {[%emt 00:01:46]} 15. h3 {[%clk 00:10:26]} {[%emt 00:00:32]}
h5 {[%clk 00:06:55]} {[%emt 00:00:55]} 16. Kh2 {[%clk 00:09:06]} {[%emt
00:01:25]} Rh8 {[%clk 00:06:42]} {[%emt 00:00:18]} 17. Ng1 {[%clk 00:09:06]}
{[%emt 00:00:03]} b4 {[%clk 00:06:07]} {[%emt 00:00:40]} 18. Qf2 {[%clk
00:06:22]} {[%emt 00:02:49]} Rh6 {[%clk 00:05:51]} {[%emt 00:00:21]} 19. Nce2
{[%clk 00:06:22]} {[%emt 00:00:04]} Qa6 {[%clk 00:04:33]} {[%emt 00:01:23]} 20.
Nc1 {[%clk 00:05:30]} {[%emt 00:00:57]} Qc4 {[%clk 00:04:00]} {[%emt 00:00:38]}
21. Bf3 {[%clk 00:02:09]} {[%emt 00:03:26]} Bg4 {[%clk 00:02:47]} {[%emt
00:01:17]} 22. b3 {[%clk 00:00:57]} {[%emt 00:01:18]} Qb5 {[%clk 00:01:44]}
{[%emt 00:01:07]} 23. Nd3 {[%clk 00:00:36]} {[%emt 00:00:26]} c4 {[%clk
00:01:00]} {[%emt 00:00:50]} 24. Nb2 {[%clk 00:00:36]} cxb3 {[%clk 00:01:00]}
{[%emt 00:00:05]} 25. cxb3 {[%clk 00:00:36]} {[%emt 00:00:03]} Rc8 {[%clk
00:00:46]} {[%emt 00:00:19]} 26. Nc4 {[%clk 00:00:35]} {[%emt 00:00:06]} Qd7
{[%clk 00:00:22]} {[%emt 00:00:29]} 27. Kg2 {[%clk 00:00:31]} {[%emt 00:00:09]}
Bxf3+ {[%clk 00:00:22]} {[%emt 00:00:02]} 28. Nxf3 {[%clk 00:00:31]} {[%emt
00:00:03]} Ng6 {[%clk 00:00:09]} {[%emt 00:00:17]} 29. Qd2 {[%clk 00:00:29]}
{[%emt 00:00:07]} Qe7 {[%clk 00:00:09]} {[%emt 00:00:04]} 30. Qxb4 {[%clk
00:00:29]} {[%emt 00:00:03]} Rc5 {[%clk 00:00:09]} {[%emt 00:00:05]} 31. Ne1
{[%clk 00:00:24]} {[%emt 00:00:11]} h4 {[%clk 00:00:09]} {[%emt 00:00:02]} 32.
g4 {[%clk 00:00:24]} {[%emt 00:00:01]} Nf8 {[%clk 00:00:09]} {[%emt 00:00:03]}
33. Nd3 {[%clk 00:00:24]} Rc7 {[%clk 00:00:09]} {[%emt 00:00:02]} 34. Qxd6
{[%clk 00:00:24]} {[%emt 00:00:03]} Qxd6 {[%clk 00:00:09]} {[%emt 00:00:03]} 35.
Nxd6 {[%clk 00:00:24]} Rc2+ {[%clk 00:00:09]} {[%emt 00:00:01]} 36. Rf2 {[%clk
00:00:24]} Rc3 {[%clk 00:00:09]} {[%emt 00:00:03]} 37. Nf5+ {[%clk 00:00:24]}
{[%emt 00:00:01]} Kg6 {[%clk 00:00:09]} {[%emt 00:00:02]} 38. Nxh6 {[%clk
00:00:24]} {[%emt 00:00:02]} Rxd3 {[%clk 00:00:08]} {[%emt 00:00:06]} 39. Nf5
{[%clk 00:00:24]} {[%emt 00:00:02]} Kg5 {[%clk 00:00:08]} {[%emt 00:00:02]} 40.
d6 {[%clk 00:00:16]} {[%emt 00:00:13]} Ne6 {[%clk 00:00:08]} {[%emt 00:00:04]}
41. Rc2 {[%clk 00:00:16]} {[%emt 00:00:04]} a5 {[%clk 00:00:07]} {[%emt
00:00:07]} 42. Rc8 {[%clk 00:00:16]} {[%emt 00:00:02]} Rd2+ {[%clk 00:00:07]}
{[%emt 00:00:02]} 43. Kf3 {[%clk 00:00:16]} {[%emt 00:00:01]} Rh2 {[%clk
00:00:07]} {[%emt 00:00:02]} 44. Rg8+ {[%clk 00:00:16]} {[%emt 00:00:01]} 1-0

[Event "Chpt France Universitaire 2024"]
[Site "Bastia, France"]
[Date "2024.04.07"]
[Round "8.8"]
[White "Dubuisson, Samuel"]
[Black "Paris, Romain"]
[Result "1/2-1/2"]
[TimeControl "15min+5s"]
[WhiteElo "2129"]
[BlackElo "1898"]

1. Nf3 {[%clk 00:15:05]} {[%emt 00:00:02]} Nf6 {[%clk 00:15:05]} {[%emt
00:00:02]} 2. g3 {[%clk 00:15:05]} {[%emt 00:00:04]} d5 {[%clk 00:15:05]}
{[%emt 00:00:04]} 3. Bg2 {[%clk 00:15:05]} {[%emt 00:00:04]} c5 {[%clk
00:15:05]} {[%emt 00:00:05]} 4. c4 {[%clk 00:15:05]} {[%emt 00:00:03]} e6
{[%clk 00:15:05]} {[%emt 00:00:06]} 5. O-O {[%clk 00:15:04]} {[%emt 00:00:06]}
Be7 {[%clk 00:15:05]} {[%emt 00:00:04]} 6. b3 {[%clk 00:14:38]} {[%emt
00:00:31]} O-O {[%clk 00:15:04]} {[%emt 00:00:06]} 7. cxd5 {[%clk 00:14:36]}
{[%emt 00:00:07]} exd5 {[%clk 00:15:04]} {[%emt 00:00:02]} 8. e3 {[%clk
00:14:32]} {[%emt 00:00:08]} Nc6 {[%clk 00:15:04]} {[%emt 00:00:04]} 9. d4
{[%clk 00:14:31]} {[%emt 00:00:06]} Bf5 {[%clk 00:12:53]} {[%emt 00:02:16]} 10.
dxc5 {[%clk 00:10:34]} {[%emt 00:04:03]} Bxc5 {[%clk 00:12:49]} {[%emt
00:00:08]} 11. Bb2 {[%clk 00:10:33]} {[%emt 00:00:05]} Re8 {[%clk 00:12:29]}
{[%emt 00:00:26]} 12. Nbd2 {[%clk 00:10:01]} {[%emt 00:00:37]} d4 {[%clk
00:10:05]} {[%emt 00:02:29]} 13. exd4 {[%clk 00:09:49]} {[%emt 00:00:17]} Nxd4
{[%clk 00:10:05]} {[%emt 00:00:02]} 14. Nxd4 {[%clk 00:07:21]} {[%emt
00:02:34]} Bxd4 {[%clk 00:10:05]} {[%emt 00:00:01]} 15. Bxd4 {[%clk 00:06:52]}
{[%emt 00:00:34]} Qxd4 {[%clk 00:10:05]} {[%emt 00:00:01]} 16. Bxb7 {[%clk
00:06:47]} {[%emt 00:00:11]} Rad8 {[%clk 00:10:01]} {[%emt 00:00:08]} 17. Nc4
{[%clk 00:06:40]} {[%emt 00:00:12]} Qc5 {[%clk 00:09:17]} {[%emt 00:00:48]} 18.
Qf3 {[%clk 00:06:20]} {[%emt 00:00:25]} Rd3 {[%clk 00:07:14]} {[%emt 00:02:08]}
19. Ne3 {[%clk 00:05:56]} {[%emt 00:00:29]} Bg6 {[%clk 00:04:33]} {[%emt
00:02:46]} 20. Rfe1 {[%clk 00:04:49]} {[%emt 00:01:12]} h6 {[%clk 00:04:30]}
{[%emt 00:00:08]} 21. Qc6 {[%clk 00:03:56]} {[%emt 00:00:58]} Qh5 {[%clk
00:03:19]} {[%emt 00:01:16]} 22. Qc4 {[%clk 00:03:09]} {[%emt 00:00:52]} Red8
{[%clk 00:02:43]} {[%emt 00:00:41]} 23. Kg2 {[%clk 00:01:27]} {[%emt 00:01:47]}
Rxe3 {[%clk 00:01:05]} {[%emt 00:01:42]} 24. Rxe3 {[%clk 00:01:01]} {[%emt
00:00:31]} Ng4 {[%clk 00:01:05]} 25. Qe2 {[%clk 00:00:10]} {[%emt 00:00:58]}
Qxh2+ {[%clk 00:01:05]} {[%emt 00:00:04]} 26. Kf3 {[%clk 00:00:10]} {[%emt
00:00:02]} Bh5 {[%clk 00:00:47]} {[%emt 00:00:24]} 27. Re8+ {[%clk 00:00:10]}
{[%emt 00:00:03]} Kh7 {[%clk 00:00:23]} {[%emt 00:00:29]} 28. Qe4+ {[%clk
00:00:10]} {[%emt 00:00:04]} Bg6 {[%clk 00:00:19]} {[%emt 00:00:10]} 29. Rxd8
{[%clk 00:00:09]} {[%emt 00:00:06]} Qxf2+ {[%clk 00:00:14]} {[%emt 00:00:09]}
30. Kxg4 {[%clk 00:00:09]} {[%emt 00:00:02]} f5+ {[%clk 00:00:14]} {[%emt
00:00:02]} 31. Kh3 {[%clk 00:00:08]} {[%emt 00:00:05]} fxe4 {[%clk 00:00:14]}
{[%emt 00:00:03]} 32. Bc8 {[%clk 00:00:06]} {[%emt 00:00:07]} Bf5+ {[%clk
00:00:14]} {[%emt 00:00:02]} 33. Bxf5+ {[%clk 00:00:06]} {[%emt 00:00:02]}
Qxf5+ {[%clk 00:00:14]} {[%emt 00:00:01]} 34. Kh2 {[%clk 00:00:06]} {[%emt
00:00:03]} e3 {[%clk 00:00:14]} {[%emt 00:00:05]} 35. Rdd1 {[%clk 00:00:06]}
{[%emt 00:00:05]} Qf2+ {[%clk 00:00:13]} {[%emt 00:00:05]} 36. Kh3 {[%clk
00:00:06]} {[%emt 00:00:02]} e2 {[%clk 00:00:10]} {[%emt 00:00:09]} 37. Rg1
{[%clk 00:00:06]} {[%emt 00:00:03]} h5 {[%clk 00:00:10]} {[%emt 00:00:04]} 38.
Rg2 {[%clk 00:00:06]} {[%emt 00:00:05]} Qf5+ {[%clk 00:00:10]} {[%emt
00:00:04]} 39. Kh2 {[%clk 00:00:06]} {[%emt 00:00:01]} Qc2 {[%clk 00:00:09]}
{[%emt 00:00:08]} 40. Re1 {[%clk 00:00:06]} {[%emt 00:00:04]} Qxa2 {[%clk
00:00:09]} {[%emt 00:00:04]} 41. b4 {[%clk 00:00:06]} {[%emt 00:00:06]} Qc4
{[%clk 00:00:09]} {[%emt 00:00:02]} 42. Rgxe2 {[%clk 00:00:06]} {[%emt
00:00:05]} Qxb4 {[%clk 00:00:09]} {[%emt 00:00:01]} 43. Re5 {[%clk 00:00:06]}
{[%emt 00:00:04]} Qb2+ {[%clk 00:00:06]} {[%emt 00:00:07]} 44. R1e2 {[%clk
00:00:06]} {[%emt 00:00:04]} Qb6 {[%clk 00:00:06]} {[%emt 00:00:02]} 45. Rxh5+
{[%clk 00:00:06]} {[%emt 00:00:03]} Kg6 {[%clk 00:00:06]} {[%emt 00:00:01]} 46.
Rhe5 {[%clk 00:00:06]} {[%emt 00:00:03]} Kh7 {[%clk 00:00:06]} {[%emt
00:00:02]} 47. Rh5+ {[%clk 00:00:06]} {[%emt 00:00:01]} Kg6 {[%clk 00:00:06]}
{[%emt 00:00:01]} 48. Rhe5 {[%clk 00:00:06]} {[%emt 00:00:02]} Kh7 {[%clk
00:00:06]} {[%emt 00:00:03]} 49. Rh5+ {[%clk 00:00:06]} {[%emt 00:00:03]} Kg6
{[%clk 00:00:06]} {[%emt 00:00:05]} 1/2-1/2